[Event "ESTCC 65 2019"]
[Site "Mali Losinj"]
[Date "2019.09.20"]
[Round "3.3"]
[White "Herbrechtsmeier, Christof"]
[Black "Kalegin, Evgenij"]
[Result "1/2-1/2"]
[ECO "B43"]
[WhiteElo "2210"]
[BlackElo "2435"]
[Annotator "NA"]
[PlyCount "83"]
[EventDate "2019.09.18"]
[EventType "team-tourn"]
[EventCountry "CRO"]
[SourceTitle "playchess.com"]
[Source "ChessBase"]
[SourceQuality "1"]
[WhiteTeam "Germany"]
[BlackTeam "Russia"]
[WhiteTeamCountry "GER"]
[BlackTeamCountry "RUS"]
[TimeControl "40/5400+30:1800+30"]

1. e4 {[%emt 0:00:30]} c5 {[%emt 0:00:30]} 2. Nf3 {[%emt 0:00:00]} e6 {[%emt 0:00:00]} 3. d4 {[%emt 0:00:00]} cxd4 {[%emt 0:00:00]} 4. Nxd4 {[%emt 0:00:30]} a6 {[%emt 0:00:00]} 5. Nc3 {[%emt 0:00:00]} b5 {[%emt 0:00:00]} 6. Bd3 {[%emt 0:00:00]} Qb6 {[%emt 0:00:30]} 7. Nf3 {[%emt 0:00:30]} Qc7 {[%emt 0:00:00]} 8. O-O {[%emt 0:00:00]} Bb7 {[%emt 0:00:00]} 9. Re1 {[%emt 0:00:00]} Be7 {[%emt 0:00:30]} 10. e5 {[%emt 0:00:30]} f5 {[%emt 0:00:30]} 11. Nd4 {[%emt 0:00:30]} g6 {[%emt 0:00:30]} 12. Bf4 {[%emt 0:01:30]} Nc6 {[%emt 0:01:30]} 13. Nxf5 {[%emt 0:01:30]} gxf5 {[%emt 0:09:30]} 14. Qh5+ {[%emt 0:00:30]} Kf8 {[%emt 0:00:30]} 15. Bxf5 {[%emt 0:03:30]} Nd8 {[%emt 0:25:30]} 16. Rad1 {[%emt 0:27:30]} exf5 {[%emt 0:09:30]} 17. Qxf5+ {[%emt 0:00:30]} Nf7 {[%emt 0:01:30]} 18. Rxd7 {[%emt 0:11:30]} Qc6 {[%emt 0:00:30]} 19. Ne4 {[%emt 0:10:30]} Qg6 {[%emt 0:27:30]} 20. Qxg6 {[%emt 0:00:30]} hxg6 {[%emt 0:00:00]} 21. Rxb7 {[%emt 0:00:00]} g5 {[%emt 0:03:14]} 22. Be3 {[%emt 0:13:00]} Rh6 {[%emt 0:00:50]} 23. f4 {[%emt 0:05:30]} gxf4 {[%emt 0:03:56]} 24. Bxf4 {[%emt 0:00:30]} Re6 {[%emt 0:00:11]} 25. Rf1 {[%emt 0:01:30]} Ke8 {[%emt 0:00:52]} 26. Ng3 {[%emt 0:05:54]} Nxe5 {[%emt 0:10:39]} 27. Nh5 {[%emt 0:02:36]} Bf8 {[%emt 0:00:25]} 28. Bg5 {[%emt 0:04:45]} Nd7 {[%emt 0:01:41]} 29. Rxf8+ {[%emt 0:01:42]} Kxf8 {[%emt 0:00:16]} 30. Rxd7 {[%emt 0:00:08]} Rc8 {[%emt 0:01:51]} 31. Nf4 {[%emt 0:04:08]} Rec6 {[%emt 0:00:51]} 32. c3 {[%emt 0:00:33]} Nh6 {[%emt 0:00:41]} 33. Nd5 {[%emt 0:01:14]} Nf7 {[%emt 0:01:10]} 34. Bf6 {[%emt 0:00:51]} Re8 {[%emt 0:00:34]} 35. g4 {[%emt 0:00:46]} Re4 {[%emt 0:00:29]} 36. h3 {[%emt 0:00:52]} Ne5 {[%emt 0:00:26]} 37. Rd8+ {[%emt 0:01:24]} Kf7 {[%emt 0:00:08]} 38. g5 {[%emt 0:00:27]} Re2 {[%emt 0:00:26]} 39. Nf4 {[%emt 0:00:42]} Re4 {[%emt 0:00:53]} 40. Nd5 {[%emt 0:02:50]} Re6 {[%emt 0:00:00]} 41. Nc7 {[%emt 0:05:08]} Rc6 {[%emt 0:03:27]} 42. Ne8 {[%emt 0:04:30]} 1/2-1/2

[Event "ESTCC 65 2019"]
[Site "Mali Losinj"]
[Date "2019.09.20"]
[Round "3.4"]
[White "Pushkov, Nikolai"]
[Black "Kiefer, Gerhard"]
[Result "1/2-1/2"]
[ECO "E97"]
[WhiteElo "2261"]
[BlackElo "2227"]
[Annotator "NA"]
[PlyCount "74"]
[EventDate "2019.09.18"]
[EventType "team-tourn"]
[EventCountry "CRO"]
[SourceTitle "playchess.com"]
[Source "ChessBase"]
[SourceQuality "1"]
[WhiteTeam "Russia"]
[BlackTeam "Germany"]
[WhiteTeamCountry "RUS"]
[BlackTeamCountry "GER"]
[TimeControl "40/5400+30:1800+30"]

1. Nf3 {[%emt 0:00:30]} Nf6 {[%emt 0:00:30]} 2. c4 {[%emt 0:00:00]} g6 {[%emt 0:00:30]} 3. Nc3 {[%emt 0:00:00]} Bg7 {[%emt 0:00:30]} 4. e4 {[%emt 0:00:30]} d6 {[%emt 0:00:00]} 5. d4 {[%emt 0:00:00]} O-O {[%emt 0:00:00]} 6. Be2 {[%emt 0:00:00]} e5 {[%emt 0:00:00]} 7. O-O {[%emt 0:01:30]} Nc6 {[%emt 0:00:00]} 8. Be3 {[%emt 0:00:30]} Ng4 {[%emt 0:00:30]} 9. Bg5 {[%emt 0:00:30]} f6 {[%emt 0:00:30]} 10. Bh4 {[%emt 0:00:00]} Nh6 {[%emt 0:06:30]} 11. dxe5 {[%emt 0:10:00]} dxe5 {[%emt 0:00:00]} 12. Qxd8 {[%emt 0:02:30]} Nxd8 {[%emt 0:00:00]} 13. Nd5 {[%emt 0:06:30]} Ne6 {[%emt 0:12:30]} 14. Rfd1 {[%emt 0:02:30]} g5 {[%emt 0:05:30]} 15. Bg3 {[%emt 0:00:30]} c6 {[%emt 0:03:30]} 16. Ne7+ {[%emt 0:05:30]} Kf7 {[%emt 0:01:30]} 17. Nxc8 {[%emt 0:00:30]} Rfxc8 {[%emt 0:00:30]} 18. h4 {[%emt 0:02:30]} g4 {[%emt 0:22:30]} 19. Nh2 {[%emt 0:00:30]} Nd4 {[%emt 0:00:30]} 20. Bxg4 {[%emt 0:01:30]} Nxg4 {[%emt 0:00:00]} 21. Nxg4 {[%emt 0:00:00]} Ke6 {[%emt 0:00:00]} 22. Kf1 {[%emt 0:02:00]} h5 {[%emt 0:02:30]} 23. Ne3 {[%emt 0:02:30]} Rd8 {[%emt 0:00:30]} 24. Rac1 {[%emt 0:08:30]} Bh6 {[%emt 0:00:30]} 25. Rc3 {[%emt 0:01:30]} Ke7 {[%emt 0:05:30]} 26. Rcd3 {[%emt 0:02:30]} Bxe3 {[%emt 0:04:30]} 27. Rxe3 {[%emt 0:00:30]} Ne6 {[%emt 0:03:30]} 28. Ree1 {[%emt 0:05:30]} Rg8 {[%emt 0:11:30]} 29. Bh2 {[%emt 0:02:30]} Rg7 {[%emt 0:03:21]} 30. f3 {[%emt 0:02:30]} Rag8 {[%emt 0:00:04]} 31. Rd2 {[%emt 0:00:30]} Nd4 {[%emt 0:03:29]} 32. Red1 {[%emt 0:00:30]} c5 {[%emt 0:00:59]} 33. Bg1 {[%emt 0:00:30]} b6 {[%emt 0:01:19]} 34. Be3 {[%emt 0:01:30]} Kd6 {[%emt 0:01:31]} 35. b4 {[%emt 0:07:30]} Kc6 {[%emt 0:01:47]} 36. a3 {[%emt 0:00:30]} Kd6 {[%emt 0:00:45]} 37. Rb1 {[%emt 0:01:30]} Kc6 {[%emt 0:00:21]} 1/2-1/2

[Event "ESTCC 65 2019"]
[Site "Mali Losinj"]
[Date "2019.09.20"]
[Round "3.5"]
[White "Renman, Nils-Gustaf"]
[Black "Rantanen, Yrjo A."]
[Result "1/2-1/2"]
[ECO "D15"]
[WhiteElo "2340"]
[BlackElo "2309"]
[Annotator "ChessBase"]
[PlyCount "122"]
[EventDate "2019.09.18"]
[EventType "team-tourn"]
[EventCountry "CRO"]
[SourceTitle "playchess.com"]
[Source "ChessBase"]
[SourceQuality "1"]
[WhiteTeam "Sweden"]
[BlackTeam "Finland"]
[WhiteTeamCountry "SWE"]
[BlackTeamCountry "FIN"]
[TimeControl "40/5400+30:1800+30"]

1. d4 {[%emt 0:00:30]} d5 {[%emt 0:00:30]} 2. Nf3 {[%emt 0:00:00]} Nf6 {[%emt 0:00:00]} 3. c4 {[%emt 0:00:00]} c6 {[%emt 0:00:00]} 4. Nc3 {[%emt 0:00:30]} a6 {[%emt 0:00:30]} 5. c5 {[%emt 0:03:30]} b6 {[%emt 0:02:30]} 6. cxb6 {[%emt 0:00:30]} Nbd7 {[%emt 0:01:30]} 7. e3 {[%emt 0:06:30]} e6 {[%emt 0:02:30]} 8. Bd2 {[%emt 0:03:30]} Qxb6 {[%emt 0:07:30]} 9. Na4 {[%emt 0:01:30]} Qa7 {[%emt 0:00:30]} 10. Bd3 {[%emt 0:01:30]} c5 {[%emt 0:06:30]} 11. dxc5 {[%emt 0:01:30]} Nxc5 {[%emt 0:04:30]} 12. Nxc5 {[%emt 0:00:30]} Bxc5 {[%emt 0:00:30]} 13. Bc3 {[%emt 0:10:30]} Bd7 {[%emt 0:09:30]} 14. O-O {[%emt 0:06:30]} Be7 {[%emt 0:17:30]} 15. Qe2 {[%emt 0:05:30]} O-O {[%emt 0:07:30]} 16. Rfc1 {[%emt 0:01:30]} Rfb8 {[%emt 0:02:30]} 17. Bd4 {[%emt 0:01:30]} Qb7 {[%emt 0:00:30]} 18. Be5 {[%emt 0:00:30]} Rc8 {[%emt 0:00:00]} 19. Rxc8+ {[%emt 0:02:30]} Qxc8 {[%emt 0:03:00]} 20. Qf1 {[%emt 0:04:30]} Qb7 {[%emt 0:01:30]} 21. Rc1 {[%emt 0:00:30]} Ne8 {[%emt 0:00:30]} 22. Bc3 {[%emt 0:13:30]} Bb5 {[%emt 0:02:30]} 23. Nd4 {[%emt 0:03:30]} Bxd3 {[%emt 0:02:30]} 24. Qxd3 {[%emt 0:00:30]} Nd6 {[%emt 0:00:30]} 25. b3 {[%emt 0:01:30]} Rc8 {[%emt 0:02:30]} 26. Bb2 {[%emt 0:03:30]} Rxc1+ {[%emt 0:03:30]} 27. Bxc1 {[%emt 0:00:00]} Ne4 {[%emt 0:04:01]} 28. f3 {[%emt 0:03:00]} Nd6 {[%emt 0:03:28]} 29. Bd2 {[%emt 0:06:37]} Nb5 {[%emt 0:02:33]} 30. Nxb5 {[%emt 0:02:42]} Qxb5 {[%emt 0:02:33]} 31. Qxb5 {[%emt 0:00:30]} axb5 {[%emt 0:00:09]} 32. a4 {[%emt 0:00:10]} bxa4 {[%emt 0:00:32]} 33. bxa4 {[%emt 0:00:04]} Kf8 {[%emt 0:01:18]} 34. Kf2 {[%emt 0:04:34]} Ke8 {[%emt 0:00:49]} 35. Ke2 {[%emt 0:00:23]} Kd7 {[%emt 0:02:21]} 36. Kd3 {[%emt 0:05:26]} Bd6 {[%emt 0:01:42]} 37. h3 {[%emt 0:00:52]} Kc6 {[%emt 0:00:32]} 38. e4 {[%emt 0:01:45]} Bc7 {[%emt 0:02:19]} 39. Bc3 {[%emt 0:03:13]} g6 {[%emt 0:03:30]} 40. Bb4 {[%emt 0:03:15]} dxe4+ {[%emt 0:01:10]} 41. fxe4 {[%emt 0:31:05]} f5 {[%emt 0:00:33]} 42. exf5 {[%emt 0:00:00]} gxf5 {[%emt 0:00:30]} 43. g4 {[%emt 0:00:00]} Bg3 {[%emt 0:02:30]} 44. gxf5 {[%emt 0:00:00]} exf5 {[%emt 0:00:30]} 45. Kd4 {[%emt 0:00:00]} Bc7 {[%emt 0:05:30]} 46. Be1 {[%emt 0:00:00]} Bb8 {[%emt 0:02:30]} 47. Bh4 {[%emt 0:00:00]} Bc7 {[%emt 0:01:30]} 48. Bf6 {[%emt 0:00:00]} Bg3 {[%emt 0:00:30]} 49. Be5 {[%emt 0:00:00]} Bf2+ {[%emt 0:01:30]} 50. Kc4 {[%emt 0:00:00]} Bb6 {[%emt 0:01:30]} 51. Bf4 {[%emt 0:00:00]} h5 {[%emt 0:05:37]} 52. Bg3 {[%emt 0:00:00]} Be3 {[%emt 0:01:34]} 53. Be5 {[%emt 0:00:00]} Bb6 {[%emt 0:00:44]} 54. Bf4 {[%emt 0:00:00]} Bf2 {[%emt 0:01:25]} 55. a5 {[%emt 0:00:00]} Be1 {[%emt 0:01:23]} 56. a6 {[%emt 0:00:00]} Kb6 {[%emt 0:00:50]} 57. Kd5 {[%emt 0:00:00]} Kxa6 {[%emt 0:00:19]} 58. Ke6 {[%emt 0:00:00]} Kb5 {[%emt 0:00:20]} 59. Kxf5 {[%emt 0:00:00]} Kc6 {[%emt 0:00:41]} 60. Kg6 {[%emt 0:00:18]} Kd5 {[%emt 0:01:03]} 61. Kxh5 {[%emt 0:00:20]} Ke6 {[%emt 0:00:30]} 1/2-1/2

[Event "ESTCC 65 2019"]
[Site "Mali Losinj"]
[Date "2019.09.20"]
[Round "3.6"]
[White "Westerinen, Heikki M.J."]
[Black "Hammar, Bengt"]
[Result "1/2-1/2"]
[ECO "B23"]
[WhiteElo "2296"]
[BlackElo "2161"]
[Annotator "NA"]
[PlyCount "78"]
[EventDate "2019.09.18"]
[EventType "team-tourn"]
[EventCountry "CRO"]
[SourceTitle "playchess.com"]
[Source "ChessBase"]
[SourceQuality "1"]
[WhiteTeam "Finland"]
[BlackTeam "Sweden"]
[WhiteTeamCountry "FIN"]
[BlackTeamCountry "SWE"]
[TimeControl "40/5400+30:1800+30"]

1. e4 {[%emt 0:00:30]} c5 {[%emt 0:00:30]} 2. Nc3 {[%emt 0:01:30]} d6 {[%emt 0:01:30]} 3. f4 {[%emt 0:02:30]} Nc6 {[%emt 0:01:30]} 4. Bb5 {[%emt 0:03:30]} Bd7 {[%emt 0:02:30]} 5. Nf3 {[%emt 0:02:30]} g6 {[%emt 0:05:30]} 6. O-O {[%emt 0:10:30]} Bg7 {[%emt 0:01:30]} 7. d3 {[%emt 0:01:30]} a6 {[%emt 0:15:30]} 8. Bxc6 {[%emt 0:01:30]} Bxc6 {[%emt 0:01:30]} 9. Qe1 {[%emt 0:01:30]} Nf6 {[%emt 0:08:30]} 10. Qh4 {[%emt 0:06:30]} h6 {[%emt 0:03:30]} 11. Kh1 {[%emt 0:08:30]} d5 {[%emt 0:01:30]} 12. Ne5 {[%emt 0:03:30]} Rc8 {[%emt 0:02:30]} 13. Nxc6 {[%emt 0:02:30]} Rxc6 {[%emt 0:00:30]} 14. e5 {[%emt 0:01:30]} d4 {[%emt 0:00:30]} 15. Ne2 {[%emt 0:10:30]} Nd5 {[%emt 0:00:30]} 16. c3 {[%emt 0:00:30]} dxc3 {[%emt 0:03:30]} 17. bxc3 {[%emt 0:00:00]} e6 {[%emt 0:01:30]} 18. Qxd8+ {[%emt 0:03:00]} Kxd8 {[%emt 0:00:00]} 19. c4 {[%emt 0:00:30]} Ne7 {[%emt 0:01:00]} 20. Ng3 {[%emt 0:07:30]} h5 {[%emt 0:00:30]} 21. Ne4 {[%emt 0:02:30]} Nf5 {[%emt 0:01:30]} 22. a4 {[%emt 0:01:30]} Kc8 {[%emt 0:05:30]} 23. Ba3 {[%emt 0:06:30]} Bf8 {[%emt 0:00:30]} 24. Ng5 {[%emt 0:03:18]} Rc7 {[%emt 0:00:00]} 25. Rfd1 {[%emt 0:03:33]} Bh6 {[%emt 0:00:00]} 26. Rab1 {[%emt 0:02:49]} Bxg5 {[%emt 0:00:30]} 27. fxg5 {[%emt 0:00:32]} Rd8 {[%emt 0:00:30]} 28. Rb3 {[%emt 0:01:36]} Nd4 {[%emt 0:05:30]} 29. Rc3 {[%emt 0:05:54]} Rc6 {[%emt 0:02:30]} 30. Re1 {[%emt 0:00:43]} a5 {[%emt 0:00:00]} 31. Kg1 {[%emt 0:00:26]} b6 {[%emt 0:00:00]} 32. Kf2 {[%emt 0:00:25]} Rc7 {[%emt 0:00:30]} 33. Bc1 {[%emt 0:01:13]} Rcd7 {[%emt 0:00:30]} 34. Bf4 {[%emt 0:01:06]} Kc7 {[%emt 0:00:30]} 35. g3 {[%emt 0:01:05]} Nc6 {[%emt 0:05:30]} 36. Rd1 {[%emt 0:01:19]} Nb4 {[%emt 0:02:30]} 37. Ke3 {[%emt 0:00:45]} Kb7 {[%emt 0:04:30]} 38. h4 {[%emt 0:01:12]} Rd4 {[%emt 0:08:17]} 39. Ke2 {[%emt 0:00:42]} R4d7 {[%emt 0:00:59]} 1/2-1/2

[Event "ESTCC 65 2019"]
[Site "Mali Losinj"]
[Date "2019.09.20"]
[Round "3.7"]
[White "Malmdin, Nils-Ake"]
[Black "Kivimaki, Jaakko"]
[Result "1/2-1/2"]
[ECO "A14"]
[WhiteElo "2142"]
[BlackElo "2195"]
[Annotator "NA"]
[PlyCount "60"]
[EventDate "2019.09.18"]
[EventType "team-tourn"]
[EventCountry "CRO"]
[SourceTitle "playchess.com"]
[Source "ChessBase"]
[SourceQuality "1"]
[WhiteTeam "Sweden"]
[BlackTeam "Finland"]
[WhiteTeamCountry "SWE"]
[BlackTeamCountry "FIN"]
[TimeControl "40/5400+30:1800+30"]

1. Nf3 {[%emt 0:00:30]} d5 {[%emt 0:00:30]} 2. g3 {[%emt 0:00:30]} e6 {[%emt 0:00:30]} 3. Bg2 {[%emt 0:00:30]} Nf6 {[%emt 0:00:30]} 4. c4 {[%emt 0:01:30]} c6 {[%emt 0:00:30]} 5. b3 {[%emt 0:00:30]} Be7 {[%emt 0:02:30]} 6. O-O {[%emt 0:03:30]} b5 {[%emt 0:00:30]} 7. d3 {[%emt 0:07:30]} a5 {[%emt 0:01:30]} 8. Nbd2 {[%emt 0:09:30]} a4 {[%emt 0:02:30]} 9. Bb2 {[%emt 0:05:30]} O-O {[%emt 0:01:30]} 10. cxb5 {[%emt 0:06:30]} cxb5 {[%emt 0:00:30]} 11. Rc1 {[%emt 0:00:30]} Bb7 {[%emt 0:03:30]} 12. Ne5 {[%emt 0:07:30]} Nfd7 {[%emt 0:01:30]} 13. Ndf3 {[%emt 0:01:30]} f6 {[%emt 0:06:30]} 14. Nxd7 {[%emt 0:00:30]} Qxd7 {[%emt 0:00:30]} 15. Bh3 {[%emt 0:00:30]} Nc6 {[%emt 0:03:30]} 16. Nd4 {[%emt 0:04:30]} Nxd4 {[%emt 0:01:30]} 17. Bxd4 {[%emt 0:00:00]} Ba3 {[%emt 0:02:30]} 18. Rb1 {[%emt 0:00:00]} Bd6 {[%emt 0:08:30]} 19. Qd2 {[%emt 0:04:30]} Qe7 {[%emt 0:05:30]} 20. Rfc1 {[%emt 0:08:30]} f5 {[%emt 0:10:30]} 21. f4 {[%emt 0:05:30]} axb3 {[%emt 0:03:30]} 22. axb3 {[%emt 0:04:30]} e5 {[%emt 0:08:30]} 23. fxe5 {[%emt 0:02:30]} Bxe5 {[%emt 0:00:30]} 24. Bc5 {[%emt 0:01:30]} Bd6 {[%emt 0:00:00]} 25. d4 {[%emt 0:00:30]} b4 {[%emt 0:01:00]} 26. Bg2 {[%emt 0:01:30]} f4 {[%emt 0:03:30]} 27. gxf4 {[%emt 0:00:30]} Rf6 {[%emt 0:10:30]} 28. e3 {[%emt 0:03:30]} Re8 {[%emt 0:01:30]} 29. Bxd6 {[%emt 0:00:33]} Rxd6 {[%emt 0:00:30]} 30. Re1 {[%emt 0:00:27]} Re6 {[%emt 0:01:08]} 1/2-1/2

[Event "ESTCC 65 2019"]
[Site "Mali Losinj"]
[Date "2019.09.20"]
[Round "3.8"]
[White "Vinke, Dietmar"]
[Black "Friberg, Hans"]
[Result "1/2-1/2"]
[ECO "D40"]
[WhiteElo "2129"]
[BlackElo "2119"]
[Annotator "NA"]
[PlyCount "59"]
[EventDate "2019.09.18"]
[EventType "team-tourn"]
[EventCountry "CRO"]
[SourceTitle "playchess.com"]
[Source "ChessBase"]
[SourceQuality "1"]
[WhiteTeam "Finland"]
[BlackTeam "Sweden"]
[WhiteTeamCountry "FIN"]
[BlackTeamCountry "SWE"]
[TimeControl "40/5400+30:1800+30"]

1. d4 {[%emt 0:00:30]} e6 {[%emt 0:00:30]} 2. c4 {[%emt 0:01:30]} Nf6 {[%emt 0:03:30]} 3. Nf3 {[%emt 0:00:30]} d5 {[%emt 0:01:30]} 4. e3 {[%emt 0:02:30]} Be7 {[%emt 0:06:30]} 5. Nc3 {[%emt 0:03:30]} O-O {[%emt 0:03:30]} 6. Bd3 {[%emt 0:00:30]} c5 {[%emt 0:05:30]} 7. cxd5 {[%emt 0:14:30]} exd5 {[%emt 0:00:30]} 8. O-O {[%emt 0:00:30]} Nc6 {[%emt 0:01:30]} 9. dxc5 {[%emt 0:05:30]} Bxc5 {[%emt 0:01:30]} 10. a3 {[%emt 0:03:30]} a6 {[%emt 0:11:30]} 11. b4 {[%emt 0:04:30]} Be7 {[%emt 0:01:30]} 12. h3 {[%emt 0:01:30]} h6 {[%emt 0:09:30]} 13. Bb2 {[%emt 0:01:30]} Be6 {[%emt 0:00:30]} 14. Qe2 {[%emt 0:09:30]} Re8 {[%emt 0:17:30]} 15. Rfd1 {[%emt 0:16:30]} Qc7 {[%emt 0:08:30]} 16. b5 {[%emt 0:02:30]} Na5 {[%emt 0:07:30]} 17. Nd4 {[%emt 0:00:30]} Nc4 {[%emt 0:01:05]} 18. Bxc4 {[%emt 0:13:11]} Qxc4 {[%emt 0:00:56]} 19. Qxc4 {[%emt 0:03:38]} dxc4 {[%emt 0:00:07]} 20. a4 {[%emt 0:03:08]} Bb4 {[%emt 0:03:03]} 21. Rac1 {[%emt 0:01:15]} Bxc3 {[%emt 0:03:27]} 22. Bxc3 {[%emt 0:00:12]} Rac8 {[%emt 0:04:38]} 23. Nxe6 {[%emt 0:06:50]} Rxe6 {[%emt 0:00:09]} 24. Bd4 {[%emt 0:00:17]} axb5 {[%emt 0:01:06]} 25. axb5 {[%emt 0:00:01]} Ne4 {[%emt 0:00:13]} 26. Rc2 {[%emt 0:00:29]} Nd6 {[%emt 0:00:35]} 27. Rb1 {[%emt 0:01:40]} Nf5 {[%emt 0:02:31]} 28. Ba1 {[%emt 0:00:01]} Nd6 {[%emt 0:01:13]} 29. Bd4 {[%emt 0:00:09]} Nf5 {[%emt 0:00:06]} 30. Ba1 {[%emt 0:01:42]} 1/2-1/2

[Event "ESTCC 65 2019"]
[Site "Mali Losinj"]
[Date "2019.09.20"]
[Round "3.9"]
[White "Huss, Andreas"]
[Black "Rooze, Jan"]
[Result "1-0"]
[ECO "E33"]
[WhiteElo "2261"]
[BlackElo "2281"]
[Annotator "NA"]
[PlyCount "83"]
[EventDate "2019.09.18"]
[EventType "team-tourn"]
[EventCountry "CRO"]
[SourceTitle "playchess.com"]
[Source "ChessBase"]
[SourceQuality "1"]
[WhiteTeam "Switzerland"]
[BlackTeam "Belgium"]
[WhiteTeamCountry "SUI"]
[BlackTeamCountry "BEL"]
[TimeControl "40/5400+30:1800+30"]

1. d4 {[%emt 0:00:30]} Nf6 {[%emt 0:00:30]} 2. c4 {[%emt 0:00:00]} e6 {[%emt 0:00:00]} 3. Nf3 {[%emt 0:00:00]} Bb4+ {[%emt 0:00:00]} 4. Nbd2 {[%emt 0:00:30]} d6 {[%emt 0:00:30]} 5. Qc2 {[%emt 0:02:30]} Nc6 {[%emt 0:08:30]} 6. a3 {[%emt 0:06:30]} Bxd2+ {[%emt 0:00:00]} 7. Bxd2 {[%emt 0:00:30]} O-O {[%emt 0:13:00]} 8. Bc3 {[%emt 0:05:30]} Qe7 {[%emt 0:04:30]} 9. b4 {[%emt 0:08:30]} e5 {[%emt 0:01:30]} 10. d5 {[%emt 0:02:30]} Nb8 {[%emt 0:05:30]} 11. e4 {[%emt 0:03:30]} Nh5 {[%emt 0:03:30]} 12. g3 {[%emt 0:03:30]} f5 {[%emt 0:10:30]} 13. Bh3 {[%emt 0:00:30]} fxe4 {[%emt 0:00:30]} 14. Bxc8 {[%emt 0:00:00]} Rxc8 {[%emt 0:00:30]} 15. Qxe4 {[%emt 0:01:00]} Nf6 {[%emt 0:03:30]} 16. Qh4 {[%emt 0:04:30]} Nbd7 {[%emt 0:00:30]} 17. O-O {[%emt 0:05:30]} Nf8 {[%emt 0:05:30]} 18. Rfe1 {[%emt 0:03:30]} Qd7 {[%emt 0:00:30]} 19. Rad1 {[%emt 0:04:30]} Qf5 {[%emt 0:06:30]} 20. Kg2 {[%emt 0:06:30]} c6 {[%emt 0:10:30]} 21. dxc6 {[%emt 0:04:30]} Rxc6 {[%emt 0:00:30]} 22. c5 {[%emt 0:01:30]} dxc5 {[%emt 0:03:30]} 23. Nxe5 {[%emt 0:12:30]} Ra6 {[%emt 0:03:33]} 24. Qc4+ {[%emt 0:07:48]} Qe6 {[%emt 0:00:11]} 25. Qxe6+ {[%emt 0:02:47]} Nxe6 {[%emt 0:00:13]} 26. Nd7 {[%emt 0:00:54]} Nxd7 {[%emt 0:06:39]} 27. Rxd7 {[%emt 0:00:03]} cxb4 {[%emt 0:00:13]} 28. Bxb4 {[%emt 0:04:51]} Rb6 {[%emt 0:02:34]} 29. f4 {[%emt 0:02:29]} g6 {[%emt 0:04:25]} 30. Re3 {[%emt 0:04:00]} Re8 {[%emt 0:02:28]} 31. Kf3 {[%emt 0:00:38]} Rc6 {[%emt 0:01:19]} 32. g4 {[%emt 0:01:36]} a5 {[%emt 0:01:26]} 33. Be7 {[%emt 0:01:34]} b5 {[%emt 0:02:05]} 34. f5 {[%emt 0:00:50]} gxf5 {[%emt 0:00:29]} 35. gxf5 {[%emt 0:00:17]} Ng7 {[%emt 0:00:42]} 36. f6 {[%emt 0:01:00]} Ne6 {[%emt 0:00:47]} 37. Kg4 {[%emt 0:00:40]} Kf7 {[%emt 0:00:27]} 38. Kf5 {[%emt 0:00:23]} Rc7 {[%emt 0:00:29]} 39. Rd5 {[%emt 0:00:30]} Rg8 {[%emt 0:00:14]} 40. Rxe6 {[%emt 0:00:16]} Rc2 {[%emt 0:00:57]} 41. Re4 {[%emt 0:30:32]} Rxh2 {[%emt 0:30:33]} 42. Ke5 {[%emt 0:00:00]} 1-0

[Event "ESTCC 65 2019"]
[Site "Mali Losinj"]
[Date "2019.09.20"]
[Round "3.10"]
[White "Van Herck, Marcel"]
[Black "Vucenovic, Dragomir"]
[Result "1/2-1/2"]
[ECO "C33"]
[WhiteElo "2088"]
[BlackElo "2154"]
[Annotator "NA"]
[PlyCount "84"]
[EventDate "2019.09.18"]
[EventType "team-tourn"]
[EventCountry "CRO"]
[SourceTitle "playchess.com"]
[Source "ChessBase"]
[SourceQuality "1"]
[WhiteTeam "Belgium"]
[BlackTeam "Switzerland"]
[WhiteTeamCountry "BEL"]
[BlackTeamCountry "SUI"]
[TimeControl "40/5400+30:1800+30"]

1. e4 {[%emt 0:00:30]} e5 {[%emt 0:00:30]} 2. f4 {[%emt 0:00:30]} exf4 {[%emt 0:00:00]} 3. Bc4 {[%emt 0:00:30]} Nf6 {[%emt 0:00:00]} 4. Nc3 {[%emt 0:10:30]} c6 {[%emt 0:00:30]} 5. d4 {[%emt 0:21:30]} d5 {[%emt 0:01:30]} 6. exd5 {[%emt 0:00:30]} cxd5 {[%emt 0:00:30]} 7. Bb5+ {[%emt 0:03:30]} Nc6 {[%emt 0:05:30]} 8. Bxf4 {[%emt 0:02:30]} Bd6 {[%emt 0:02:30]} 9. Nge2 {[%emt 0:02:30]} Bg4 {[%emt 0:03:30]} 10. O-O {[%emt 0:06:30]} Bxf4 {[%emt 0:03:30]} 11. Rxf4 {[%emt 0:00:00]} O-O {[%emt 0:00:30]} 12. Qd2 {[%emt 0:10:00]} Bxe2 {[%emt 0:06:30]} 13. Bxe2 {[%emt 0:05:30]} Qb6 {[%emt 0:03:30]} 14. Na4 {[%emt 0:02:30]} Qc7 {[%emt 0:00:30]} 15. Bd3 {[%emt 0:05:30]} Ne7 {[%emt 0:05:30]} 16. Nc3 {[%emt 0:04:30]} Qb6 {[%emt 0:03:30]} 17. Raf1 {[%emt 0:05:53]} Ng6 {[%emt 0:01:30]} 18. Bxg6 {[%emt 0:00:34]} hxg6 {[%emt 0:02:30]} 19. Rxf6 {[%emt 0:03:12]} gxf6 {[%emt 0:00:30]} 20. Nxd5 {[%emt 0:00:00]} Qd6 {[%emt 0:01:30]} 21. Nxf6+ {[%emt 0:00:41]} Kg7 {[%emt 0:00:30]} 22. c4 {[%emt 0:05:20]} Rh8 {[%emt 0:01:30]} 23. g3 {[%emt 0:00:06]} Rad8 {[%emt 0:01:30]} 24. Nd5 {[%emt 0:01:26]} Rde8 {[%emt 0:04:30]} 25. Qf2 {[%emt 0:01:07]} f5 {[%emt 0:01:30]} 26. Nf4 {[%emt 0:00:36]} g5 {[%emt 0:05:30]} 27. c5 {[%emt 0:01:24]} Qe7 {[%emt 0:03:30]} 28. Nd5 {[%emt 0:00:24]} Qe2 {[%emt 0:01:30]} 29. Nc3 {[%emt 0:00:23]} Qxf2+ {[%emt 0:03:30]} 30. Rxf2 {[%emt 0:00:03]} Kg6 {[%emt 0:02:30]} 31. Nb5 {[%emt 0:00:28]} Re1+ {[%emt 0:09:30]} 32. Kg2 {[%emt 0:00:09]} Rd1 {[%emt 0:02:30]} 33. Nd6 {[%emt 0:01:03]} Rxd4 {[%emt 0:06:28]} 34. Nxb7 {[%emt 0:00:10]} Rc4 {[%emt 0:02:15]} 35. Rxf5 {[%emt 0:00:23]} Rb8 {[%emt 0:00:46]} 36. Nd6 {[%emt 0:00:27]} Rxb2+ {[%emt 0:00:45]} 37. Kf3 {[%emt 0:00:37]} Rc3+ {[%emt 0:11:24]} 38. Ke4 {[%emt 0:00:05]} Rbc2 {[%emt 0:00:36]} 39. Kd4 {[%emt 0:00:45]} Ra3 {[%emt 0:01:14]} 40. Re5 {[%emt 0:05:41]} Rd2+ {[%emt 0:03:22]} 41. Kc4 {[%emt 0:01:33]} Rxh2 {[%emt 0:10:40]} 42. Ne4 {[%emt 0:00:30]} Rhxa2 {[%emt 0:11:11]} 1/2-1/2